{"text_format":"3","workbook":"xlsx","n_sheets":1,"sheets":["College Applications"],"read":"whole","date_system":"1900"}

{"sheet":"College Applications","index":0,"n_rows":65,"n_cols":7,"rows_kept":65,"merged":[[1,1,1,6],[64,1,66,6]]}
[]
[null,"College Applications"]
[null,"General Information","School 1","School 2","School 3","School 4","School 5"]
[null,"Location"]
[null,"Rank information"]
[null,"Web address"]
[null,"Size"]
[null,"Colleges and schools"]
[null,"Other"]
[null,"Applying",{"$f":"(C3)","v":"School 1"},{"$f":"(D3)","v":"School 2"},{"$f":"(E3)","v":"School 3"},{"$f":"(F3)","v":"School 4"},{"$f":"(G3)","v":"School 5"}]
[null,"Admissions address"]
[null,"Admissions telephone"]
[null,"Contact person"]
[null,"Application fee"]
[null,"Date application due"]
[null,"Send transcripts to"]
[null,"Date application mailed"]
[null,"Accepted?"]
[null,"Accept or decline by date"]
[null,"Other"]
[null,"Requirements",{"$f":"(C3)","v":"School 1"},{"$f":"(D3)","v":"School 2"},{"$f":"(E3)","v":"School 3"},{"$f":"(F3)","v":"School 4"},{"$f":"(G3)","v":"School 5"}]
[null,"SAT minimum score"]
[null,"ACT minimum score"]
[null,"Other standardized tests"]
[null,"Grades"]
[null,"Advanced placement (AP) scores?"]
[null,"International Baccalaureate (IB) credit?"]
[null,"Essay requirements"]
[null,"Personal document requirements"]
[null,"Resume requirements"]
[null,"Community/volunteer work"]
[null,"Other"]
[null,"Finances",{"$f":"(C3)","v":"School 1"},{"$f":"(D3)","v":"School 2"},{"$f":"(E3)","v":"School 3"},{"$f":"(F3)","v":"School 4"},{"$f":"(G3)","v":"School 5"}]
[null,"Yearly tuition (non-resident)",{"v":0,"d":"$0"},{"v":0,"d":"$0"},{"v":0,"d":"$0"},{"v":0,"d":"$0"},{"v":0,"d":"$0"}]
[null,"Books/supplies ",{"v":0,"d":"$0"},{"v":0,"d":"$0"},{"v":0,"d":"$0"},{"v":0,"d":"$0"},{"v":0,"d":"$0"}]
[null,"Room and board",{"v":0,"d":"$0"},{"v":0,"d":"$0"},{"v":0,"d":"$0"},{"v":0,"d":"$0"},{"v":0,"d":"$0"}]
[null,"Transportation",{"v":0,"d":"$0"},{"v":0,"d":"$0"},{"v":0,"d":"$0"},{"v":0,"d":"$0"},{"v":0,"d":"$0"}]
[null,"Medical",{"v":0,"d":"$0"},{"v":0,"d":"$0"},{"v":0,"d":"$0"},{"v":0,"d":"$0"},{"v":0,"d":"$0"}]
[null,"Personal",{"v":0,"d":"$0"},{"v":0,"d":"$0"},{"v":0,"d":"$0"},{"v":0,"d":"$0"},{"v":0,"d":"$0"}]
[null,"Estimated total",{"$f":"SUM(C34:C39)","v":{"v":0,"d":"$0"}},{"$f":"SUM(D34:D39)","v":{"v":0,"d":"$0"}},{"$f":"SUM(E34:E39)","v":{"v":0,"d":"$0"}},{"$f":"SUM(F34:F39)","v":{"v":0,"d":"$0"}},{"$f":"SUM(G34:G39)","v":{"v":0,"d":"$0"}}]
[null,"Financial aid info"]
[null,"Scholarship info"]
[null,"Student employment info"]
[null,"Financial aid office location"]
[null,"Financial aid office telephone"]
[null,"Other"]
[null,"Non-Academic Student Activities",{"$f":"(C3)","v":"School 1"},{"$f":"(D3)","v":"School 2"},{"$f":"(E3)","v":"School 3"},{"$f":"(F3)","v":"School 4"},{"$f":"(G3)","v":"School 5"}]
[null,"Club sports I'm interested in"]
[null,"Greek system?"]
[null,"Other"]
[null,"Campus Visits",{"$f":"(C3)","v":"School 1"},{"$f":"(D3)","v":"School 2"},{"$f":"(E3)","v":"School 3"},{"$f":"(F3)","v":"School 4"},{"$f":"(G3)","v":"School 5"}]
[null,"When"]
[null,"Contact person"]
[null,"Contact's phone number/e-mail"]
[null,"Accommodations"]
[null,"Surrounding Area",{"$f":"(C3)","v":"School 1"},{"$f":"(D3)","v":"School 2"},{"$f":"(E3)","v":"School 3"},{"$f":"(F3)","v":"School 4"},{"$f":"(G3)","v":"School 5"}]
[null,"City, state"]
[null,"Chamber of Commerce Web site"]
[null,"Population"]
[null,"Median income"]
[null,"Average rental cost (2 bedroom)"]
[null,"Top 5 county employers"]
[null,"Average weather"]
[]
[null,"Notes:"]